fUSD/lending_fUSD_20250118
["ID","MTS","AMOUNT","RATE_DAILY","PERIOD"]
[349441154,1737181865149,-500.0,0.00019178,2]
[349441155,1737181865159,-500.0,0.00019178,2]
[349441156,1737181865169,-500.0,0.00019178,2]
[349441157,1737181865179,-500.0,0.00019932,2]
[349441158,1737181865189,-500.0,0.00019991,2]
[349441159,1737181865198,-500.0,0.00019992,2]
[349441160,1737181865208,-500.0,0.00019992,2]
[349441161,1737181865217,-500.0,0.00020144,2]
[349441162,1737181865227,-500.0,0.00020144,2]
[349441163,1737181865236,-500.0,0.00020299,2]
[349441164,1737181865245,-500.0,0.00020497,2]
[349441165,1737181865254,-500.0,0.00020497,2]
[349441166,1737181865264,-500.0,0.00020497,2]
[349441167,1737181865273,-500.0,0.00020497,2]
[349441168,1737181865283,-500.0,0.00020498,2]
[349441169,1737181865292,-500.0,0.00020498,2]
[349441170,1737181865304,-500.0,0.00020498,2]
[349441171,1737181865314,-500.0,0.00020498,2]
[349441172,1737181865323,-500.0,0.00020498,2]
[349441173,1737181865333,-500.0,0.00020498,2]
[349441174,1737181865344,-500.0,0.00020498,2]
[349441175,1737181865353,-500.0,0.00020498,2]
[349441176,1737181865364,-500.0,0.00020498,2]
[349441177,1737181865373,-500.0,0.00020499,2]
[349441178,1737181865383,-500.0,0.00020499,2]
[349441179,1737181865393,-500.0,0.00020499,2]
[349441180,1737181865405,-500.0,0.00020499,2]
[349441181,1737181865415,-253.52,0.00020499,2]
[349441182,1737181865425,-500.0,0.00020499,2]
[349441183,1737181865435,-500.0,0.00020499,2]
[349441184,1737181865445,-500.0,0.00020499,2]
[349441185,1737181865456,-510.49364924,0.00020499,2]
[349441186,1737181865466,-1849.73,0.00020897,2]
[349441187,1737181865476,-500.0,0.00020898,2]
[349441188,1737181865486,-369.87218358,0.00020899,2]
[349441189,1737181865496,-910.82,0.00020899,2]
[349441190,1737181865506,-500.0,0.00020899,2]
[349441191,1737181865516,-500.0,0.00020899,2]
[349441192,1737181865525,-1036.44,0.00020899,2]
[349441193,1737181865535,-1036.44,0.00020899,2]
[349441194,1737181865545,-500.0,0.00020899,2]
[349441195,1737181865554,-500.0,0.00020899,2]
[349441196,1737181865563,-500.0,0.00020899,2]
[349441197,1737181865573,-151.26279548,0.00020899,2]
[349441198,1737181865583,-1032.98,0.00020899,2]
[349441199,1737181865593,-1032.98,0.00020899,2]
[349441200,1737181865603,-500.0,0.00020899,2]
[349441201,1737181865613,-504.05056003,0.00020899,2]
[349441202,1737181865623,-500.0,0.00020899,2]
[349441203,1737181865632,-500.0,0.00020899,2]
[349441204,1737181865642,-604.75,0.00020899,2]
[349441205,1737181865654,-604.75,0.00020899,2]
[349441206,1737181865663,-500.0,0.00020899,2]
[349441207,1737181865673,-500.0,0.00020899,2]
[349441208,1737181865682,-500.0,0.00020899,2]
[349441209,1737181865692,-500.0,0.00020899,2]
[349441210,1737181865702,-500.0,0.00020899,2]
[349441211,1737181865712,-500.0,0.00020899,2]
[349441212,1737181865722,-500.0,0.00020899,2]
[349441213,1737181865732,-500.0,0.00020899,2]
[349441214,1737181865741,-1182.47,0.00020899,2]
[349441215,1737181865750,-1182.47,0.00020899,2]
[349441216,1737181865760,-743.89,0.00020899,2]
[349441217,1737181865770,-743.89,0.00020899,2]
[349441218,1737181865780,-504.22,0.00020899,2]
[349441219,1737181865790,-504.22,0.00020899,2]
[349441220,1737181865799,-213.573569,0.00020899,2]
[349441221,1737181865809,-213.573569,0.00020899,2]
[349441222,1737181865819,-500.0,0.00020899,2]
[349441223,1737181865829,-500.0,0.00020899,2]
[349441224,1737181865838,-665.96,0.00020899,2]
[349441225,1737181865847,-665.96,0.00020899,2]
[349441226,1737181865857,-462.60829,0.00020899,2]
[349441227,1737181865867,-462.60829,0.00020899,2]
[349441228,1737181865877,-500.0,0.00020899,2]
[349441229,1737181865887,-500.0,0.00020899,2]
[349441230,1737181865901,-913.83,0.00020899,2]
[349441231,1737181865911,-913.83,0.00020899,2]
[349441232,1737181865921,-500.0,0.00020899,2]
[349441233,1737181865931,-500.0,0.00020899,2]
[349441234,1737181865941,-837.27,0.00020899,2]
[349441235,1737181865950,-837.27,0.00020899,2]
[349441236,1737181865959,-1202.88,0.00020899,2]
[349441237,1737181865969,-1202.88,0.00020899,2]
[349441238,1737181865979,-251.545816,0.00020899,2]
[349441239,1737181865988,-5466.313161,0.00020899,2]
[349441240,1737181865997,-251.545816,0.00020899,2]
[349441241,1737181866007,-500.0,0.00020899,2]
[349441242,1737181866017,-500.0,0.00020899,2]
[349441243,1737181866026,-5466.313161,0.00020899,2]
[349441244,1737181866036,-901.21,0.00020899,2]
[349441245,1737181866045,-901.21,0.00020899,2]
[349441246,1737181866055,-904.25,0.00020899,2]
[349441247,1737181866064,-904.25,0.00020899,2]
[349441248,1737181866073,-764.09,0.00020899,2]
[349441249,1737181866083,-764.09,0.00020899,2]
[349441250,1737181866093,-672.65,0.00020899,2]
[349441251,1737181866103,-672.65,0.00020899,2]
[349441252,1737181866113,-500.0,0.00020899,2]
[349441253,1737181866123,-500.0,0.00020899,2]
[349441254,1737181866132,-500.0,0.00020899,2]
[349441255,1737181866142,-500.0,0.00020899,2]
[349441256,1737181866155,-1065.18,0.00020899,2]
[349441257,1737181866164,-1065.18,0.00020899,2]
[349441258,1737181866174,-1603.54,0.00020899,2]
[349441259,1737181866184,-1603.54,0.00020899,2]
[349441260,1737181866193,-726.82,0.00020899,2]
[349441261,1737181866203,-726.82,0.00020899,2]
[349441262,1737181866213,-500.0,0.00020899,2]
[349441263,1737181866222,-484.69858204,0.00020899,2]
[349441264,1737181866231,-677.73,0.00020899,2]
[349441265,1737181866241,-677.73,0.00020899,2]
[349441266,1737181866250,-151.0,0.00020899,2]
[349441267,1737181866260,-704.6,0.00020899,2]
[349441268,1737181866270,-704.6,0.00020899,2]
[349441269,1737181866279,-500.0,0.00020899,2]
[349441270,1737181866289,-500.0,0.00020899,2]
[349441271,1737181866299,-790.72,0.00020899,2]
[349441272,1737181866315,-790.72,0.00020899,2]
[349441273,1737181866324,-500.0,0.00020899,2]
[349441274,1737181866334,-500.0,0.00020899,2]
[349441275,1737181866344,-151.0,0.00020899,2]
[349441276,1737181866355,-500.0,0.00020899,2]
[349441277,1737181866366,-500.0,0.00020899,2]
[349441278,1737181866380,-872.68489826,0.000209,2]
[349441279,1737181866390,-2000.0,0.000209,2]
[349441280,1737181866400,-151.0,0.000209,2]
[349441281,1737181866409,-187.857883,0.000209,2]
[349441282,1737181866419,-151.0,0.000209,2]
[349441283,1737181866428,-303.702748,0.000209,2]
[349441284,1737181866437,-303.702748,0.000209,2]
[349441285,1737181866446,-602.109621,0.000209,2]
[349441286,1737181866456,-602.109621,0.000209,2]
[349441287,1737181866468,-550.49056506,0.000209,2]
[349441288,1737181866477,-550.49056506,0.000209,2]
[349441289,1737181866486,-550.49056506,0.000209,2]
[349441290,1737181866495,-550.49056506,0.000209,2]
[349441291,1737181866505,-550.49056506,0.000209,2]
[349441292,1737181866515,-550.49056506,0.000209,2]
[349441293,1737181866524,-817.0,0.000209,7]
[349441294,1737181866535,-239.27140601,0.000209,3]
[349441295,1737181866545,-338.92452611,0.000209,2]
[349441296,1737181866554,-900.0,0.000209,7]
[349441297,1737181866564,-202.99342504,0.000209,2]
[349441298,1737181866574,-2396.87256039,0.000209,2]
[349441299,1737181866585,-2396.87256039,0.00020901,2]
[349441300,1737181866594,-200.0,0.00020901,2]
[349441301,1737181866604,-200.0,0.00020904,2]
[349441302,1737181866613,-300.0,0.00020907,2]
[349441303,1737181866623,-421.61103011,0.00020907,2]
[349441304,1737181866632,-1277.76359541,0.00020908,2]
[349441305,1737181866642,-18194.74934441,0.00020909,2]
[349441306,1737181866653,-3932.94789693,0.00020909,2]
[349441307,1737181866662,-200.0,0.00020909,2]
[349441308,1737181866672,-3572.611148,0.0002091,2]
[349441309,1737181866682,-3217.30086353,0.0002091,2]
[349441310,1737181866691,-3622.53911916,0.00020911,2]
[349441311,1737181866707,-872.68489826,0.00020913,2]
[349441312,1737181866722,-3780.44113695,0.00020914,2]
[349441313,1737181866733,-3932.94789693,0.00020914,2]
[349441314,1737181866742,-150.0,0.00020915,2]
[349441315,1737181866752,-638.88179771,0.00020917,2]
[349441316,1737181866762,-2396.87256039,0.00020918,2]
[349441317,1737181866772,-3780.44113695,0.00020918,2]
[349441318,1737181866781,-200.0,0.00020921,2]
[349441319,1737181866790,-36040.91440274,0.00020923,2]
[349441320,1737181866800,-200.0,0.00020924,2]
[349441321,1737181866810,-18194.74934441,0.00020926,2]
[349441322,1737181866819,-1043.1182738,0.00020928,2]
[349441323,1737181866830,-1630.4235869,0.00020928,2]
[349441324,1737181866840,-2396.87256039,0.00020932,2]
[349441325,1737181866850,-209.54913066,0.00020935,2]
[349441326,1737181866859,-383.2508803,0.00020936,2]
[349441327,1737181866870,-169576.18120432,0.00020936,2]
[349441328,1737181866880,-443.9858475,0.00020937,2]
[349441329,1737181866889,-3780.44113695,0.00020937,2]
[349441330,1737181866900,-150.0,0.00020937,2]
[349441331,1737181866910,-150.0,0.00020937,2]
[349441332,1737181866919,-150.0,0.0002094,2]
[349441333,1737181866929,-209.54913066,0.00020941,2]
[349441334,1737181866938,-18194.74934441,0.00020941,2]
[349441335,1737181866948,-150.0,0.00020942,2]
[349441336,1737181866957,-3932.94789693,0.00020943,2]
[349441337,1737181866967,-150.0,0.00020944,2]
[349441338,1737181866977,-200.0,0.00020946,2]
[349441339,1737181866986,-3780.44113695,0.00020948,2]
[349441340,1737181866996,-443.9858475,0.00020948,2]
[349441341,1737181867005,-36040.91440274,0.00020949,2]
[349441342,1737181867015,-872.68489826,0.0002095,2]
[349441343,1737181867024,-200.0,0.0002095,2]
[349441344,1737181867033,-3932.94789693,0.00020951,2]
[349441345,1737181867042,-3622.53911916,0.00020952,2]
[349441346,1737181867051,-638.88179771,0.00020955,2]
[349441347,1737181867061,-18194.74934441,0.00020955,2]
[349441348,1737181867070,-638.88179771,0.00020955,2]
[349441349,1737181867079,-421.61103011,0.00020955,2]
[349441350,1737181867089,-169576.18120432,0.00020955,2]
[349441351,1737181867099,-872.68489826,0.00020956,2]
[349441352,1737181867109,-3622.53911916,0.00020956,2]
[349441353,1737181867118,-1277.76359541,0.00020957,2]
[349441354,1737181867128,-2396.87256039,0.00020957,2]
[349441355,1737181867138,-19627.64947207,0.00020957,2]
[349441356,1737181867200,-555.72,0.00020498,2]
[349441357,1737181867209,-97566.84205919,0.00020957,2]
[349441358,1737181867488,-500.0,0.00019178,2]
[349441359,1737181867499,-500.0,0.00019178,2]
[349441360,1737181867509,-500.0,0.00019178,2]
[349441361,1737181867519,-500.0,0.00019932,2]
[349441362,1737181867528,-500.0,0.00019991,2]
[349441363,1737181867538,-500.0,0.00019992,2]
[349441364,1737181867548,-500.0,0.00020043,2]
[349441365,1737181867558,-385.58,0.00020143,2]
[349441366,1737181867567,-500.0,0.00020144,2]
[349441367,1737181867577,-500.0,0.00020497,2]
[349441368,1737181867587,-500.0,0.00020497,2]
[349441369,1737181867597,-500.0,0.00020498,2]
[349441370,1737181867607,-588.27265053,0.00020499,2]
[349441371,1737181867616,-500.0,0.00020499,2]
[349441372,1737181867626,-500.0,0.00020499,2]
[349441373,1737181867636,-500.0,0.00020499,2]
[349441374,1737181867646,-500.0,0.00020499,2]
[349441375,1737181867659,-500.0,0.00020499,2]
[349441376,1737181867669,-722.0,0.000205,2]
[349441377,1737181867679,-820.0,0.00020619,2]
[349441378,1737181867690,-155.05222177,0.00020632,2]
[349441379,1737181867699,-905.0,0.00020726,2]
[349441380,1737181867712,-1260.0,0.00020726,2]
[349441381,1737181867723,-567.52703002,0.00020726,2]
[349441382,1737181867737,-1666.28644147,0.00020726,2]
[349441383,1737181867750,-272.52523702,0.00020726,2]
[349441384,1737181867835,-500.0,0.00019178,2]
[349441385,1737181867845,-500.0,0.00020299,2]
[349441386,1737181867855,-437.66129149,0.00020726,2]
[349441387,1737181867865,-500.0,0.00020898,2]
[349441388,1737181867875,-52381.68967306,0.00020957,2]
[349441389,1737181867885,-638.88179771,0.00020958,2]
[349441390,1737181867895,-443.9858475,0.00020961,2]
[349441391,1737181867907,-36040.91440274,0.00020963,2]
[349441392,1737181867917,-3217.30086353,0.00020963,2]
[349441393,1737181867927,-200.0,0.00020964,2]
[349441394,1737181867936,-2396.87256039,0.00020964,2]
[349441395,1737181867946,-209.54913066,0.00020965,2]
[349441396,1737181867955,-421.61103011,0.00020965,2]
[349441397,1737181867965,-872.68489826,0.00020966,2]
[349441398,1737181867974,-192.3148663,0.00020966,2]
[349441399,1737181867983,-192.3148663,0.00020966,2]
[349441400,1737181867993,-923.9901855,0.00020966,2]
[349441401,1737181868002,-804.8620972,0.00020966,2]
[349441402,1737181868012,-1444.2229902,0.00020966,2]
[349441403,1737181868021,-1258.0223935,0.00020966,2]
[349441404,1737181868031,-141733.47974531,0.00020967,2]
[349441405,1737181868833,934.38,0.00017647,2]
[349441406,1737182228782,164.51100793,0.00023,120]
[349441408,1737182344388,153.68,0.00010137,2]
[349441410,1737182367825,6652.2,0.00012,2]
[349441417,1737182834104,-1656.11421935,0.00018618,2]
[349441418,1737182842095,-708.58945079,0.00018618,2]
[349441419,1737182847105,-810.38632986,0.00018618,2]
[349441420,1737182847128,-150.05502777,0.00018656,2]
[349441421,1737182947121,-894.86,0.00016531,2]
[349441422,1737182955091,-200.69271059,0.00018561,2]
[349441423,1737182955112,-31279.22497223,0.00018656,2]
[349441424,1737182955134,-13809.75429718,0.00018661,2]
[349441445,1737183031727,-250.0,0.00018477,2]
[349441446,1737183031737,-1327.14,0.00018532,2]
[349441447,1737183031748,-935.67,0.00018532,2]
[349441448,1737183031759,-300.0,0.0001866,2]
[349441449,1737183031770,-1659.82321774,0.00018661,2]
[349441450,1737183032179,-1091.0150386,0.00018661,2]
[349441451,1737183032483,-326.878519,0.00018661,2]
[349441452,1737183032495,-7012.52892748,0.00018661,2]
[349441453,1737183032504,-250.0,0.00018678,2]
[349441454,1737183032514,-1000.0,0.00018731,2]
[349441455,1737183032523,-894.86,0.00018795,2]
[349441456,1737183032533,-165.99,0.00018808,2]
[349441457,1737183032543,-250.0,0.00018844,2]
[349441458,1737183032553,-568.83,0.00018895,2]
[349441459,1737183032562,-1301.0,0.00018904,2]
[349441460,1737183032571,-190.5,0.00019045,2]
[349441461,1737183032580,-213.9675039,0.00019078,2]
[349441462,1737183032590,-500.941152,0.00019173,2]
[349441463,1737183032599,-471.69034001,0.00019178,2]
[349441464,1737183032608,-500.0,0.00019178,2]
[349441465,1737183032618,-514.49423806,0.00019178,2]
[349441466,1737183032627,-513.16602958,0.00019178,2]
[349441467,1737183032636,-381.82977229,0.00019178,2]
[349441468,1737183032645,-500.0,0.00019178,2]
[349441469,1737183032655,-500.0,0.00019178,2]
[349441470,1737183032664,-500.0,0.00019178,2]
[349441471,1737183032674,-500.0,0.00019178,2]
[349441472,1737183032684,-500.0,0.00019178,2]
[349441473,1737183032694,-500.0,0.00019178,2]
[349441475,1737183032703,-500.0,0.00019178,2]
[349441477,1737183032712,-516.12863548,0.00019178,2]
[349441479,1737183032723,-500.0,0.00019178,2]
[349441481,1737183032731,-500.0,0.00019178,2]
[349441483,1737183032741,-544.5,0.00019178,2]
[349441485,1737183032751,-500.0,0.00019178,2]
[349441487,1737183032760,-500.0,0.00019178,2]
[349441489,1737183032770,-500.0,0.00019178,2]
[349441491,1737183032779,-500.0,0.00019178,2]
[349441492,1737183032788,-500.0,0.00019178,2]
[349441494,1737183032797,-639.69470344,0.00019178,2]
[349441496,1737183032806,-504.07847195,0.00019178,2]
[349441498,1737183032816,-506.19274385,0.00019178,2]
[349441500,1737183032825,-500.0,0.00019178,2]
[349441502,1737183032835,-500.0,0.00019178,2]
[349441505,1737183032844,-500.0,0.00019178,2]
[349441506,1737183032854,-500.0,0.00019178,2]
[349441508,1737183032863,-500.0,0.00019178,2]
[349441510,1737183032873,-500.0,0.00019178,2]
[349441512,1737183032882,-500.0,0.00019178,2]
[349441514,1737183032891,-500.0,0.00019178,2]
[349441516,1737183032900,-500.0,0.00019178,2]
[349441518,1737183032910,-500.0,0.00019178,2]
[349441520,1737183032918,-500.0,0.00019178,2]
[349441522,1737183032927,-500.0,0.00019178,2]
[349441524,1737183032936,-500.0,0.00019178,2]
[349441526,1737183032945,-500.0,0.00019178,2]
[349441528,1737183032954,-500.0,0.00019178,2]
[349441530,1737183032964,-500.0,0.00019178,2]
[349441532,1737183032974,-500.0,0.00019178,2]
[349441534,1737183032983,-500.0,0.00019178,2]
[349441536,1737183032992,-583.41195387,0.00019178,2]
[349441538,1737183033001,-507.38963566,0.00019178,2]
[349441540,1737183033010,-503.18416835,0.00019178,2]
[349441542,1737183033019,-516.39546374,0.00019178,2]
[349441544,1737183033028,-500.0,0.00019178,2]
[349441546,1737183033037,-500.0,0.00019178,2]
[349441548,1737183033048,-500.0,0.00019178,2]
[349441550,1737183033058,-500.0,0.00019178,2]
[349441552,1737183033067,-500.0,0.00019178,2]
[349441554,1737183033076,-500.0,0.00019178,2]
[349441556,1737183033086,-500.0,0.00019178,2]
[349441558,1737183033095,-500.0,0.00019178,2]
[349441560,1737183033105,-500.0,0.00019178,2]
[349441562,1737183033115,-500.0,0.00019178,2]
[349441564,1737183033124,-500.0,0.00019178,2]
[349441566,1737183033133,-500.0,0.00019178,2]
[349441568,1737183033142,-531.11405509,0.00019178,2]
[349441570,1737183033152,-313.06465184,0.00019178,2]
[349441572,1737183033161,-503.03434522,0.00019178,2]
[349441574,1737183033170,-507.37696558,0.00019178,2]
[349441576,1737183033179,-551.55736126,0.00019178,2]
[349441578,1737183033188,-500.0,0.00019178,2]
[349441580,1737183033197,-500.0,0.00019178,2]
[349441582,1737183033207,-505.81162997,0.00019178,2]
[349441583,1737183033216,-505.00688843,0.00019178,2]
[349441585,1737183033227,-245.53787934,0.00019178,2]
[349441587,1737183033236,-500.0,0.00019178,2]
[349441589,1737183033245,-500.0,0.00019178,2]
[349441591,1737183033255,-618.04896565,0.00019178,2]
[349441593,1737183033264,-506.42944755,0.00019178,2]
[349441595,1737183033273,-500.0,0.00019178,2]
[349441597,1737183033282,-240.10488791,0.00019178,2]
[349441599,1737183033292,-507.88589563,0.00019178,7]
[349441601,1737183033302,-505.53640474,0.00019178,2]
[349441603,1737183033311,-500.0,0.00019178,2]
[349441605,1737183033321,-500.0,0.00019178,2]
[349441607,1737183033331,-500.0,0.00019178,2]
[349441609,1737183033340,-502.78856336,0.00019178,2]
[349441611,1737183033349,-500.0,0.00019178,2]
[349441613,1737183033359,-500.0,0.00019178,2]
[349441615,1737183033368,-500.0,0.00019178,2]
[349441617,1737183033377,-503.82753864,0.00019178,2]
[349441619,1737183033386,-500.0,0.00019178,2]
[349441621,1737183033396,-500.0,0.00019178,2]
[349441623,1737183033405,-500.0,0.00019178,2]
[349441625,1737183033415,-500.0,0.00019178,2]
[349441627,1737183033423,-500.0,0.00019178,2]
[349441629,1737183033432,-500.0,0.00019178,2]
[349441631,1737183033442,-500.0,0.00019178,2]
[349441633,1737183033451,-500.0,0.00019178,2]
[349441635,1737183033460,-500.0,0.00019178,2]
[349441636,1737183033470,-500.0,0.00019178,2]
[349441638,1737183033479,-500.0,0.00019178,2]
[349441640,1737183033488,-505.87756251,0.00019178,2]
[349441642,1737183033498,-500.0,0.00019178,2]
[349441644,1737183033507,-500.0,0.00019178,2]
[349441646,1737183033516,-504.93362862,0.00019178,2]
[349441648,1737183033525,-500.0,0.00019178,2]
[349441650,1737183033535,-500.0,0.00019178,2]
[349441652,1737183033544,-500.0,0.00019178,2]
[349441654,1737183033553,-500.0,0.00019178,2]
[349441656,1737183033562,-501.6134981,0.00019178,2]
[349441658,1737183033572,-201.46627162,0.00019178,2]
[349441660,1737183033582,-500.0,0.00019178,2]
[349441662,1737183033591,-183.29356828,0.00019178,2]
[349441664,1737183033600,-500.0,0.00019178,2]
[349441666,1737183033609,-200.77381352,0.00019178,2]
[349441668,1737183033618,-500.0,0.00019178,2]
[349441670,1737183033626,-500.0,0.00019178,2]
[349441672,1737183033636,-500.0,0.00019178,2]
[349441674,1737183033645,-500.0,0.00019178,2]
[349441676,1737183033654,-500.0,0.00019178,2]
[349441678,1737183033664,-309.67306223,0.00019178,2]
[349441680,1737183033676,-500.0,0.00019178,2]
[349441682,1737183033687,-500.0,0.00019178,2]
[349441684,1737183033696,-503.21670572,0.00019178,2]
[349441686,1737183033706,-504.38129663,0.00019178,2]
[349441688,1737183033715,-500.0,0.00019178,2]
[349441690,1737183033726,-500.0,0.00019178,2]
[349441691,1737183033735,-440.69426559,0.00019178,2]
[349441693,1737183033745,-502.80617579,0.00019178,2]
[349441695,1737183033754,-500.0,0.00019178,2]
[349441697,1737183033763,-503.84055312,0.00019178,2]
[349441699,1737183033773,-500.0,0.00019178,2]
[349441701,1737183033782,-502.6739837,0.00019178,2]
[349441703,1737183033791,-500.0,0.00019178,2]
[349441705,1737183033800,-500.0,0.00019178,2]
[349441707,1737183033809,-500.0,0.00019178,2]
[349441709,1737183033819,-500.0,0.00019178,2]
[349441711,1737183033828,-500.0,0.00019178,2]
[349441713,1737183033838,-500.0,0.00019178,2]
[349441715,1737183033847,-561.31165058,0.00019178,2]
[349441717,1737183033857,-500.0,0.00019178,2]
[349441719,1737183033867,-500.0,0.00019178,2]
[349441721,1737183033877,-500.0,0.00019178,2]
[349441723,1737183033886,-500.0,0.00019178,2]
[349441725,1737183033895,-500.0,0.00019178,2]
[349441727,1737183033904,-500.0,0.00019178,2]
[349441729,1737183033914,-503.52588659,0.00019178,2]
[349441731,1737183033923,-500.0,0.00019178,2]
[349441733,1737183033932,-500.0,0.00019178,2]
[349441735,1737183033941,-209.01466929,0.00019178,2]
[349441737,1737183033951,-500.0,0.00019178,2]
[349441739,1737183033961,-500.0,0.00019178,2]
[349441741,1737183033971,-500.0,0.00019178,2]
[349441743,1737183033980,-500.0,0.00019178,2]
[349441745,1737183033989,-662.26,0.00019178,2]
[349441747,1737183033999,-500.0,0.00019178,2]
[349441749,1737183034008,-500.0,0.00019178,2]
[349441751,1737183034018,-500.0,0.00019178,2]
[349441753,1737183034027,-500.0,0.00019178,2]
[349441755,1737183034036,-304.46706092,0.00019178,2]
[349441757,1737183034047,-500.0,0.00019178,2]
[349441758,1737183034056,-500.0,0.00019178,2]
[349441759,1737183034065,-500.0,0.00019178,2]
[349441760,1737183034074,-500.0,0.00019178,2]
[349441761,1737183034083,-500.0,0.00019178,2]
[349441762,1737183034092,-500.0,0.00019178,2]
[349441763,1737183034100,-506.72865087,0.00019178,2]
[349441764,1737183034109,-500.0,0.00019178,2]
[349441765,1737183034119,-500.0,0.00019178,2]
[349441766,1737183034127,-500.0,0.00019178,2]
[349441767,1737183034136,-500.0,0.00019178,2]
[349441768,1737183034145,-500.0,0.00019178,2]
[349441769,1737183034154,-500.0,0.00019178,2]
[349441770,1737183034164,-502.78770923,0.00019178,2]
[349441772,1737183034173,-500.0,0.00019178,2]
[349441774,1737183034182,-500.0,0.00019178,2]
[349441776,1737183034191,-500.0,0.00019178,2]
[349441778,1737183034200,-500.0,0.00019178,2]
[349441780,1737183034210,-500.0,0.00019178,2]
[349441782,1737183034220,-500.0,0.00019178,2]
[349441784,1737183034229,-500.0,0.00019178,2]
[349441805,1737183034415,-500.0,0.00019178,2]
[349441807,1737183034425,-500.0,0.00019178,2]
[349441809,1737183034434,-500.0,0.00019178,2]
[349441811,1737183034443,-500.0,0.00019178,2]
[349441813,1737183034453,-500.0,0.00019178,2]
[349441815,1737183034462,-500.0,0.00019178,2]
[349441817,1737183034472,-500.0,0.00019178,2]
[349441819,1737183034482,-500.0,0.00019178,2]
[349441821,1737183034492,-500.0,0.00019178,2]
[349441824,1737183034511,-500.0,0.00019178,2]
[349441827,1737183034522,-500.0,0.00019178,2]
[349441829,1737183034533,-500.0,0.00019178,2]
[349441831,1737183034543,-500.0,0.00019178,2]
[349441833,1737183034552,-500.0,0.00019178,2]
[349441835,1737183034561,-500.0,0.00019178,2]
[349441837,1737183034571,-500.0,0.00019178,2]
[349441839,1737183034581,-500.0,0.00019178,2]
[349441841,1737183034590,-875.4,0.00019178,2]
[349441843,1737183034599,-500.0,0.00019178,2]
[349441845,1737183034609,-500.0,0.00019178,2]
[349441847,1737183034618,-500.0,0.00019178,2]
[349441849,1737183034627,-300.46,0.00019178,2]
[349441851,1737183034637,-565.81,0.00019178,2]
[349441853,1737183034646,-500.0,0.00019178,2]
[349441855,1737183034655,-500.0,0.00019178,2]
[349441857,1737183034666,-500.0,0.00019178,2]
[349441859,1737183034678,-1259.06,0.00019178,2]
[349441861,1737183034687,-500.0,0.00019178,2]
[349441863,1737183034697,-500.0,0.00019178,2]
[349441865,1737183034707,-464.24717111,0.00019178,2]
[349441867,1737183034718,-500.0,0.00019178,2]
[349441869,1737183034728,-500.0,0.00019178,2]
[349441871,1737183034737,-500.0,0.00019178,2]
[349441873,1737183034748,-500.0,0.00019178,2]
[349441875,1737183034758,-500.0,0.00019178,2]
[349441877,1737183034766,-500.0,0.00019178,2]
[349441879,1737183034776,-502.02125783,0.00019178,2]
[349441881,1737183034786,-500.0,0.00019178,2]
[349441883,1737183034796,-500.0,0.00019178,2]
[349441885,1737183034805,-500.0,0.00019178,2]
[349441887,1737183034815,-500.0,0.00019178,2]
[349441889,1737183034824,-500.0,0.00019178,2]
[349441891,1737183034834,-709.34,0.00019178,2]
[349441893,1737183034843,-500.0,0.00019178,2]